[Event "Titled Tuesday Blitz November 14 Late 2023"]
[White "Womacka, Mathias"]
[Black "Maksimovic, Bojan"]
[WhiteFideId "4611390"]
[BlackFideId "14408120"]
[WhiteElo "2536"]
[BlackElo "2783"]
[Result "0-1"]
[Round "7"]
[TimeControl "180+1"]
[Date "2023.11.14"]
[WhiteClock "0:00:07"]
[BlackClock "0:00:02"]
[Board "45"]

1. e4 {[%clk 0:03:00]}  a6 {[%clk 0:02:56]} 2. d4 {[%clk 0:02:58]}  e6 {[%clk 0:02:56]} 3. f4 {[%clk 0:02:49]}  d5 {[%clk 0:02:55]} 4. e5 {[%clk 0:02:47]}  c5 {[%clk 0:02:55]} 5. Nf3 {[%clk 0:02:41]}  cxd4 {[%clk 0:02:53]} 6. Nxd4 {[%clk 0:02:38]}  Nc6 {[%clk 0:02:54]} 7. Be3 {[%clk 0:02:32]}  Nge7 {[%clk 0:02:46]} 8. Bd3 {[%clk 0:02:25]}  Nxd4 {[%clk 0:02:29]} 9. Bxd4 {[%clk 0:02:26]}  Nc6 {[%clk 0:02:30]} 10. Bf2 {[%clk 0:02:18]}  g6 {[%clk 0:02:20]} 11. O-O {[%clk 0:02:13]}  f6 {[%clk 0:02:19]} 12. Bh4 {[%clk 0:02:00]}  Be7 {[%clk 0:02:19]} 13. exf6 {[%clk 0:01:53]}  Bxf6 {[%clk 0:02:20]} 14. Bxf6 {[%clk 0:01:52]}  Qxf6 {[%clk 0:02:21]} 15. c3 {[%clk 0:01:51]}  O-O {[%clk 0:02:21]} 16. Nd2 {[%clk 0:01:50]}  Bd7 {[%clk 0:02:20]} 17. Nb3 {[%clk 0:01:35]}  Rae8 {[%clk 0:02:19]} 18. Qd2 {[%clk 0:01:32]}  h6 {[%clk 0:02:08]} 19. Rf3 {[%clk 0:01:22]}  Kg7 {[%clk 0:01:30]} 20. Raf1 {[%clk 0:01:10]}  Qe7 {[%clk 0:01:01]} 21. Rg3 {[%clk 0:01:03]}  Rf6 {[%clk 0:01:01]} 22. h4 {[%clk 0:00:40]}  Qf7 {[%clk 0:00:38]} 23. h5 {[%clk 0:00:38]}  g5 {[%clk 0:00:38]} 24. fxg5 {[%clk 0:00:38]}  Rxf1+ {[%clk 0:00:38]} 25. Bxf1 {[%clk 0:00:37]}  Rf8 {[%clk 0:00:38]} 26. gxh6+ {[%clk 0:00:34]}  Kh8 {[%clk 0:00:39]} 27. Rf3 {[%clk 0:00:34]}  Qe7 {[%clk 0:00:33]} 28. Rxf8+ {[%clk 0:00:27]}  Qxf8 {[%clk 0:00:34]} 29. Qg5 {[%clk 0:00:23]}  e5 {[%clk 0:00:30]} 30. Bd3 {[%clk 0:00:17]}  Be8 {[%clk 0:00:26]} 31. g4 {[%clk 0:00:13]}  Bd7 {[%clk 0:00:07]} 32. Kg2 {[%clk 0:00:12]}  a5 {[%clk 0:00:02]} 33. Kg3 {[%clk 0:00:11]}  Bc8 {[%clk 0:00:03]} 34. Nd2 {[%clk 0:00:10]}  a4 {[%clk 0:00:03]} 35. a3 {[%clk 0:00:09]}  e4 {[%clk 0:00:03]} 36. Be2 {[%clk 0:00:09]}  Qd6+ {[%clk 0:00:03]} 37. Kg2 {[%clk 0:00:09]}  Qf8 {[%clk 0:00:02]} 38. Nf1 {[%clk 0:00:08]}  d4 {[%clk 0:00:01]} 39. cxd4 {[%clk 0:00:07]}  Qf7 {[%clk 0:00:01]} 40. Ng3 {[%clk 0:00:08]}  Qe7 {[%clk 0:00:01]} 41. Qf6+ {[%clk 0:00:07]}  Qxf6 {[%clk 0:00:01]} 42. Nxe4 {[%clk 0:00:06]}  Qxd4 {[%clk 0:00:02]} 43. Ng5 {[%clk 0:00:06]}  Qd5+ {[%clk 0:00:02]} 44. Bf3 {[%clk 0:00:05]}  Qxg5 {[%clk 0:00:01]} 45. Kg3 {[%clk 0:00:05]}  Qxh6 {[%clk 0:00:02]} 46. Be4 {[%clk 0:00:05]}  Qg5 {[%clk 0:00:02]} 47. Bd5 {[%clk 0:00:06]}  Qxd5 {[%clk 0:00:02]} 48. Kh4 {[%clk 0:00:06]}  Qe4 {[%clk 0:00:02]} 49. h6 {[%clk 0:00:07]}  Qxg4# {[%clk 0:00:02]} 0-1


[Site "https://www.chess.com"]

[Event "Titled Tuesday Blitz November 14 Late 2023"]
[White "Goltsev, Dmitry"]
[Black "Weimarraner"]
[WhiteFideId "24176710"]
[WhiteElo "2718"]
[BlackElo "2533"]
[Result "0-1"]
[Round "7"]
[TimeControl "180+1"]
[Date "2023.11.14"]
[WhiteClock "0:00:03"]
[BlackClock "0:00:08"]
[Board "46"]

1. e4 {[%clk 0:02:59]}  c5 {[%clk 0:03:00]} 2. Nf3 {[%clk 0:02:58]}  d6 {[%clk 0:02:59]} 3. d4 {[%clk 0:02:58]}  cxd4 {[%clk 0:03:00]} 4. Nxd4 {[%clk 0:02:59]}  Nf6 {[%clk 0:03:00]} 5. Nc3 {[%clk 0:03:00]}  a6 {[%clk 0:03:01]} 6. f3 {[%clk 0:02:59]}  e5 {[%clk 0:02:55]} 7. Nb3 {[%clk 0:02:59]}  Be6 {[%clk 0:02:51]} 8. Be3 {[%clk 0:02:58]}  Be7 {[%clk 0:02:51]} 9. Nd5 {[%clk 0:02:52]}  Nxd5 {[%clk 0:02:44]} 10. exd5 {[%clk 0:02:53]}  Bf5 {[%clk 0:02:45]} 11. Bd3 {[%clk 0:02:51]}  Bxd3 {[%clk 0:02:42]} 12. Qxd3 {[%clk 0:02:51]}  O-O {[%clk 0:02:39]} 13. O-O-O {[%clk 0:02:48]}  Nd7 {[%clk 0:02:38]} 14. Kb1 {[%clk 0:02:46]}  Qc7 {[%clk 0:02:20]} 15. c4 {[%clk 0:02:42]}  a5 {[%clk 0:02:19]} 16. Nd2 {[%clk 0:02:41]}  b6 {[%clk 0:02:14]} 17. g4 {[%clk 0:02:39]}  Nc5 {[%clk 0:02:10]} 18. Bxc5 {[%clk 0:02:38]}  bxc5 {[%clk 0:02:11]} 19. Ne4 {[%clk 0:02:35]}  Rfb8 {[%clk 0:02:09]} 20. h4 {[%clk 0:02:34]}  a4 {[%clk 0:02:08]} 21. Rh2 {[%clk 0:02:33]}  Rb4 {[%clk 0:02:04]} 22. h5 {[%clk 0:02:26]}  Rab8 {[%clk 0:01:57]} 23. Rdd2 {[%clk 0:02:20]}  Qa7 {[%clk 0:01:37]} 24. g5 {[%clk 0:02:14]}  Qa6 {[%clk 0:01:30]} 25. Rc2 {[%clk 0:02:05]}  Qc8 {[%clk 0:01:22]} 26. Rcg2 {[%clk 0:01:54]}  Kh8 {[%clk 0:01:21]} 27. g6 {[%clk 0:01:53]}  fxg6 {[%clk 0:01:11]} 28. hxg6 {[%clk 0:01:52]}  h6 {[%clk 0:01:12]} 29. Qe3 {[%clk 0:01:33]}  Bf8 {[%clk 0:00:47]} 30. Qg5 {[%clk 0:00:13]}  Qb7 {[%clk 0:00:14]} 31. Nxd6 {[%clk 0:00:07]}  Bxd6 {[%clk 0:00:11]} 32. Rxh6+ {[%clk 0:00:07]}  Kg8 {[%clk 0:00:11]} 33. Rh8+ {[%clk 0:00:04]}  Kxh8 {[%clk 0:00:11]} 34. Qh5+ {[%clk 0:00:04]}  Kg8 {[%clk 0:00:12]} 35. Qh7+ {[%clk 0:00:04]}  Kf8 {[%clk 0:00:12]} 36. Qh8+ {[%clk 0:00:05]}  Ke7 {[%clk 0:00:13]} 37. Qxg7+ {[%clk 0:00:05]}  Kd8 {[%clk 0:00:13]} 38. Qg8+ {[%clk 0:00:05]}  Kc7 {[%clk 0:00:14]} 39. Qf7+ {[%clk 0:00:03]}  Kb6 {[%clk 0:00:14]} 40. Qe6 {[%clk 0:00:04]}  Ka5 {[%clk 0:00:12]} 41. Qxd6 {[%clk 0:00:02]}  Rxb2+ {[%clk 0:00:13]} 42. Kc1 {[%clk 0:00:03]}  Rb1+ {[%clk 0:00:12]} 43. Kd2 {[%clk 0:00:04]}  Qb2+ {[%clk 0:00:12]} 44. Ke3 {[%clk 0:00:04]}  Re1+ {[%clk 0:00:12]} 45. Kd3 {[%clk 0:00:03]}  Qb1+ {[%clk 0:00:09]} 46. Kc3 {[%clk 0:00:03]}  Qc1+ {[%clk 0:00:08]} 47. Kd3 {[%clk 0:00:03]}  Re3# {[%clk 0:00:08]} 0-1


[Site "https://www.chess.com"]

[Event "Titled Tuesday Blitz November 14 Late 2023"]
[White "Omariev, Maksim"]
[Black "GatoRojo150"]
[WhiteFideId "4193423"]
[WhiteElo "2516"]
[BlackElo "2635"]
[Result "1-0"]
[Round "7"]
[TimeControl "180+1"]
[Date "2023.11.14"]
[WhiteClock "0:00:32"]
[BlackClock "0:00:10"]
[Board "49"]

1. g4 {[%clk 0:03:00]}  d5 {[%clk 0:02:55]} 2. Bg2 {[%clk 0:02:59]}  Bxg4 {[%clk 0:02:55]} 3. c4 {[%clk 0:02:59]}  c6 {[%clk 0:02:53]} 4. Qb3 {[%clk 0:02:58]}  Nf6 {[%clk 0:02:47]} 5. Qxb7 {[%clk 0:02:56]}  Nbd7 {[%clk 0:02:47]} 6. Nc3 {[%clk 0:02:52]}  e6 {[%clk 0:02:33]} 7. d4 {[%clk 0:02:51]}  Rb8 {[%clk 0:02:12]} 8. Qxa7 {[%clk 0:02:31]}  Ra8 {[%clk 0:01:58]} 9. Qb7 {[%clk 0:02:29]}  Be7 {[%clk 0:01:45]} 10. h3 {[%clk 0:02:26]}  Bf5 {[%clk 0:01:43]} 11. Nf3 {[%clk 0:02:26]}  O-O {[%clk 0:01:40]} 12. Bf4 {[%clk 0:02:13]}  Nh5 {[%clk 0:01:33]} 13. Bh2 {[%clk 0:02:11]}  Bg5 {[%clk 0:01:14]} 14. Nxg5 {[%clk 0:01:40]}  Qxg5 {[%clk 0:01:15]} 15. Rg1 {[%clk 0:01:40]}  Qe7 {[%clk 0:01:07]} 16. c5 {[%clk 0:01:14]}  e5 {[%clk 0:00:49]} 17. Qxc6 {[%clk 0:01:08]}  exd4 {[%clk 0:00:44]} 18. Nxd5 {[%clk 0:01:08]}  Qxc5 {[%clk 0:00:42]} 19. Qxc5 {[%clk 0:01:07]}  Nxc5 {[%clk 0:00:43]} 20. Ne7+ {[%clk 0:01:07]}  Kh8 {[%clk 0:00:42]} 21. Nxf5 {[%clk 0:01:06]}  Nb3 {[%clk 0:00:42]} 22. Rb1 {[%clk 0:00:57]}  Rxa2 {[%clk 0:00:42]} 23. Bd5 {[%clk 0:00:58]}  d3 {[%clk 0:00:33]} 24. Bxb3 {[%clk 0:00:55]}  Ra5 {[%clk 0:00:31]} 25. Ne3 {[%clk 0:00:49]}  dxe2 {[%clk 0:00:30]} 26. Kxe2 {[%clk 0:00:49]}  Rb5 {[%clk 0:00:30]} 27. Bc4 {[%clk 0:00:49]}  Rb6 {[%clk 0:00:25]} 28. Be5 {[%clk 0:00:41]}  f6 {[%clk 0:00:23]} 29. Bd4 {[%clk 0:00:40]}  Rb7 {[%clk 0:00:16]} 30. Kf3 {[%clk 0:00:39]}  Rd7 {[%clk 0:00:14]} 31. Bc5 {[%clk 0:00:37]}  Rc8 {[%clk 0:00:13]} 32. b4 {[%clk 0:00:37]}  g5 {[%clk 0:00:11]} 33. Be6 {[%clk 0:00:36]}  Rcc7 {[%clk 0:00:11]} 34. Bxd7 {[%clk 0:00:36]}  Rxd7 {[%clk 0:00:12]} 35. Rbd1 {[%clk 0:00:37]}  Rf7 {[%clk 0:00:12]} 36. Rd8+ {[%clk 0:00:37]}  Kg7 {[%clk 0:00:11]} 37. Rgd1 {[%clk 0:00:37]}  Nf4 {[%clk 0:00:12]} 38. R1d7 {[%clk 0:00:37]}  Nxh3 {[%clk 0:00:12]} 39. Rxf7+ {[%clk 0:00:37]}  Kxf7 {[%clk 0:00:13]} 40. b5 {[%clk 0:00:38]}  h5 {[%clk 0:00:13]} 41. b6 {[%clk 0:00:38]}  g4+ {[%clk 0:00:14]} 42. Kg3 {[%clk 0:00:38]}  Ng5 {[%clk 0:00:13]} 43. b7 {[%clk 0:00:32]}  Ne4+ {[%clk 0:00:14]} 44. Kh4 {[%clk 0:00:33]}  Nxc5 {[%clk 0:00:14]} 45. b8=Q {[%clk 0:00:33]}  Ne6 {[%clk 0:00:14]} 46. Rd7+ {[%clk 0:00:32]}  Kg6 {[%clk 0:00:10]} 47. Qg8+ {[%clk 0:00:32]} 1-0


[Site "https://www.chess.com"]

[Event "Titled Tuesday Blitz November 14 Late 2023"]
[White "Grossboss19"]
[Black "Guerra Tulcan, Lenin"]
[BlackFideId "3601382"]
[WhiteElo "2463"]
[BlackElo "2606"]
[Result "1-0"]
[Round "7"]
[TimeControl "180+1"]
[Date "2023.11.14"]
[WhiteClock "0:00:47"]
[BlackClock "0:00:00"]
[Board "53"]

1. c4 {[%clk 0:02:58]}  Nf6 {[%clk 0:02:58]} 2. Nc3 {[%clk 0:02:54]}  e5 {[%clk 0:02:57]} 3. d3 {[%clk 0:02:52]}  Bc5 {[%clk 0:02:56]} 4. Nf3 {[%clk 0:02:52]}  d6 {[%clk 0:02:57]} 5. e3 {[%clk 0:02:47]}  a6 {[%clk 0:02:55]} 6. Be2 {[%clk 0:02:47]}  Ba7 {[%clk 0:02:55]} 7. O-O {[%clk 0:02:46]}  O-O {[%clk 0:02:55]} 8. b3 {[%clk 0:02:43]}  h6 {[%clk 0:02:55]} 9. Bb2 {[%clk 0:02:43]}  Bf5 {[%clk 0:02:55]} 10. Nd2 {[%clk 0:02:38]}  Nbd7 {[%clk 0:02:54]} 11. Nde4 {[%clk 0:02:36]}  Rb8 {[%clk 0:02:47]} 12. a4 {[%clk 0:02:30]}  Qe7 {[%clk 0:02:42]} 13. Bf3 {[%clk 0:02:25]}  Rfd8 {[%clk 0:02:38]} 14. Re1 {[%clk 0:02:19]}  Bh7 {[%clk 0:02:38]} 15. d4 {[%clk 0:02:15]}  Nxe4 {[%clk 0:02:28]} 16. Bxe4 {[%clk 0:02:09]}  Bxe4 {[%clk 0:02:23]} 17. Nxe4 {[%clk 0:02:10]}  Nf6 {[%clk 0:02:23]} 18. Qf3 {[%clk 0:02:07]}  Nxe4 {[%clk 0:02:14]} 19. Qxe4 {[%clk 0:02:07]}  Re8 {[%clk 0:02:14]} 20. Qd3 {[%clk 0:01:56]}  e4 {[%clk 0:02:12]} 21. Qc2 {[%clk 0:01:54]}  c6 {[%clk 0:02:09]} 22. d5 {[%clk 0:01:50]}  cxd5 {[%clk 0:02:04]} 23. cxd5 {[%clk 0:01:51]}  Rbc8 {[%clk 0:02:04]} 24. Qd2 {[%clk 0:01:46]}  Qg5 {[%clk 0:02:01]} 25. Rac1 {[%clk 0:01:44]}  Bc5 {[%clk 0:01:42]} 26. b4 {[%clk 0:01:40]}  Bb6 {[%clk 0:01:41]} 27. Rxc8 {[%clk 0:01:37]}  Rxc8 {[%clk 0:01:40]} 28. Rc1 {[%clk 0:01:37]}  Rxc1+ {[%clk 0:01:35]} 29. Bxc1 {[%clk 0:01:38]}  h5 {[%clk 0:01:26]} 30. Bb2 {[%clk 0:01:35]}  h4 {[%clk 0:01:25]} 31. h3 {[%clk 0:01:34]}  Kh7 {[%clk 0:01:07]} 32. Qc3 {[%clk 0:01:25]}  f5 {[%clk 0:01:03]} 33. a5 {[%clk 0:01:23]}  Bd8 {[%clk 0:01:02]} 34. Qc8 {[%clk 0:01:22]}  Bf6 {[%clk 0:00:50]} 35. Bc1 {[%clk 0:01:21]}  f4 {[%clk 0:00:43]} 36. exf4 {[%clk 0:01:17]}  Qxd5 {[%clk 0:00:43]} 37. Be3 {[%clk 0:01:15]}  Qf7 {[%clk 0:00:35]} 38. Qf5+ {[%clk 0:01:11]}  Qg6 {[%clk 0:00:35]} 39. Qd5 {[%clk 0:01:10]}  Bc3 {[%clk 0:00:32]} 40. Qxb7 {[%clk 0:01:09]}  d5 {[%clk 0:00:29]} 41. Qxd5 {[%clk 0:01:08]}  Bxb4 {[%clk 0:00:29]} 42. f5 {[%clk 0:01:08]}  Qe8 {[%clk 0:00:28]} 43. Bb6 {[%clk 0:01:05]}  Be1 {[%clk 0:00:12]} 44. Qd1 {[%clk 0:01:02]}  Bc3 {[%clk 0:00:12]} 45. Qg4 {[%clk 0:01:01]}  Bf6 {[%clk 0:00:11]} 46. Qe2 {[%clk 0:00:59]}  Qe5 {[%clk 0:00:07]} 47. Qxa6 {[%clk 0:00:57]}  Qa1+ {[%clk 0:00:06]} 48. Qf1 {[%clk 0:00:56]}  Qa2 {[%clk 0:00:05]} 49. a6 {[%clk 0:00:55]}  Be5 {[%clk 0:00:04]} 50. a7 {[%clk 0:00:54]}  Bf4 {[%clk 0:00:01]} 51. Bd4 {[%clk 0:00:48]}  Bd6 {[%clk 0:00:00]} 52. Qc1 {[%clk 0:00:47]} 1-0


[Site "https://www.chess.com"]

[Event "Titled Tuesday Blitz November 14 Late 2023"]
[White "Lima, Kleyton Alcantara"]
[Black "Esquivel Golcher, Luis Enrique"]
[WhiteFideId "22718397"]
[BlackFideId "6600174"]
[WhiteElo "2595"]
[BlackElo "2397"]
[Result "0-1"]
[Round "7"]
[TimeControl "180+1"]
[Date "2023.11.14"]
[WhiteClock "0:00:13"]
[BlackClock "0:00:46"]
[Board "56"]

1. e4 {[%clk 0:03:00]}  e6 {[%clk 0:02:52]} 2. d4 {[%clk 0:03:00]}  d5 {[%clk 0:02:51]} 3. Nc3 {[%clk 0:03:01]}  Nf6 {[%clk 0:02:48]} 4. e5 {[%clk 0:03:01]}  Nfd7 {[%clk 0:02:48]} 5. f4 {[%clk 0:03:02]}  c5 {[%clk 0:02:49]} 6. Nf3 {[%clk 0:02:56]}  Nc6 {[%clk 0:02:45]} 7. Be3 {[%clk 0:02:53]}  a6 {[%clk 0:02:41]} 8. a3 {[%clk 0:02:50]}  b5 {[%clk 0:02:37]} 9. dxc5 {[%clk 0:02:48]}  Bxc5 {[%clk 0:02:31]} 10. Bxc5 {[%clk 0:02:48]}  Nxc5 {[%clk 0:02:27]} 11. b4 {[%clk 0:02:49]}  Nd7 {[%clk 0:02:21]} 12. Bd3 {[%clk 0:02:48]}  Qb6 {[%clk 0:02:17]} 13. Qd2 {[%clk 0:02:46]}  f6 {[%clk 0:02:15]} 14. exf6 {[%clk 0:02:33]}  Nxf6 {[%clk 0:02:16]} 15. Qf2 {[%clk 0:02:20]}  Qxf2+ {[%clk 0:02:10]} 16. Kxf2 {[%clk 0:02:21]}  Ng4+ {[%clk 0:02:11]} 17. Ke2 {[%clk 0:02:21]}  O-O {[%clk 0:02:04]} 18. h3 {[%clk 0:02:18]}  Nf6 {[%clk 0:02:04]} 19. g3 {[%clk 0:02:17]}  Bb7 {[%clk 0:02:00]} 20. Rhe1 {[%clk 0:02:15]}  e5 {[%clk 0:01:47]} 21. fxe5 {[%clk 0:02:09]}  Rae8 {[%clk 0:01:42]} 22. Kd2 {[%clk 0:01:17]}  Nh5 {[%clk 0:01:30]} 23. Ng5 {[%clk 0:01:06]}  Nxe5 {[%clk 0:01:28]} 24. Bxh7+ {[%clk 0:01:02]}  Kh8 {[%clk 0:01:28]} 25. Rf1 {[%clk 0:00:48]}  Rf6 {[%clk 0:01:20]} 26. Bd3 {[%clk 0:00:39]}  Nxg3 {[%clk 0:01:17]} 27. Rg1 {[%clk 0:00:26]}  Ne4+ {[%clk 0:01:07]} 28. Bxe4 {[%clk 0:00:23]}  dxe4 {[%clk 0:01:08]} 29. Raf1 {[%clk 0:00:19]}  e3+ {[%clk 0:01:03]} 30. Kc1 {[%clk 0:00:19]}  Rc8 {[%clk 0:00:57]} 31. Nce4 {[%clk 0:00:14]}  Rxf1+ {[%clk 0:00:49]} 32. Rxf1 {[%clk 0:00:15]}  Bxe4 {[%clk 0:00:49]} 33. Nxe4 {[%clk 0:00:14]}  e2 {[%clk 0:00:49]} 34. Re1 {[%clk 0:00:12]}  Nd3+ {[%clk 0:00:49]} 35. Kd2 {[%clk 0:00:13]}  Nxe1 {[%clk 0:00:50]} 36. Kxe1 {[%clk 0:00:13]}  Rxc2 {[%clk 0:00:50]} 37. Nc5 {[%clk 0:00:13]}  a5 {[%clk 0:00:49]} 38. Nb7 {[%clk 0:00:11]}  axb4 {[%clk 0:00:49]} 39. axb4 {[%clk 0:00:12]}  Rb2 {[%clk 0:00:49]} 40. Nd6 {[%clk 0:00:13]}  Rxb4 {[%clk 0:00:48]} 41. Kxe2 {[%clk 0:00:13]}  Rd4 {[%clk 0:00:48]} 42. Nf5 {[%clk 0:00:13]}  Re4+ {[%clk 0:00:46]} 43. Kf3 {[%clk 0:00:13]} 0-1


[Site "https://www.chess.com"]

[Event "Titled Tuesday Blitz November 14 Late 2023"]
[White "Mazzilli, Piero"]
[Black "aghasiyevkamal"]
[WhiteFideId "807087"]
[WhiteElo "2366"]
[BlackElo "2584"]
[Result "1-0"]
[Round "7"]
[TimeControl "180+1"]
[Date "2023.11.14"]
[WhiteClock "0:00:07"]
[BlackClock "0:00:00"]
[Board "57"]

1. e4 {[%clk 0:03:00]}  e6 {[%clk 0:02:58]} 2. Nf3 {[%clk 0:03:00]}  d5 {[%clk 0:02:58]} 3. Nc3 {[%clk 0:03:01]}  d4 {[%clk 0:02:51]} 4. Ne2 {[%clk 0:03:00]}  c5 {[%clk 0:02:50]} 5. c3 {[%clk 0:02:57]}  Nc6 {[%clk 0:02:44]} 6. cxd4 {[%clk 0:02:55]}  cxd4 {[%clk 0:02:44]} 7. Qa4 {[%clk 0:02:55]}  Bc5 {[%clk 0:02:40]} 8. b4 {[%clk 0:02:55]}  Bxb4 {[%clk 0:02:32]} 9. Nexd4 {[%clk 0:02:54]}  Qa5 {[%clk 0:02:15]} 10. Bb5 {[%clk 0:02:50]}  Qxa4 {[%clk 0:02:13]} 11. Bxa4 {[%clk 0:02:50]}  Bd7 {[%clk 0:02:04]} 12. Nxc6 {[%clk 0:02:49]}  Bxc6 {[%clk 0:02:03]} 13. Bxc6+ {[%clk 0:02:48]}  bxc6 {[%clk 0:02:02]} 14. Bb2 {[%clk 0:02:46]}  f6 {[%clk 0:01:59]} 15. Rb1 {[%clk 0:02:41]}  Ba5 {[%clk 0:01:50]} 16. Ke2 {[%clk 0:02:39]}  Ne7 {[%clk 0:01:47]} 17. Rhc1 {[%clk 0:02:33]}  Kd7 {[%clk 0:01:44]} 18. Ba3 {[%clk 0:02:31]}  Rab8 {[%clk 0:01:33]} 19. Bxe7 {[%clk 0:02:19]}  Kxe7 {[%clk 0:01:33]} 20. Rxb8 {[%clk 0:02:17]}  Rxb8 {[%clk 0:01:32]} 21. Rxc6 {[%clk 0:02:18]}  Rb2 {[%clk 0:01:31]} 22. Ra6 {[%clk 0:02:15]}  Bb6 {[%clk 0:01:27]} 23. a4 {[%clk 0:02:11]}  Ra2 {[%clk 0:01:25]} 24. Ne1 {[%clk 0:01:55]}  Kd7 {[%clk 0:01:14]} 25. Nd3 {[%clk 0:01:54]}  Kc7 {[%clk 0:01:11]} 26. Nb4 {[%clk 0:01:31]}  Ra3 {[%clk 0:00:59]} 27. Nc2 {[%clk 0:01:22]}  Ra2 {[%clk 0:00:58]} 28. Nb4 {[%clk 0:01:22]}  Ra1 {[%clk 0:00:43]} 29. Nc2 {[%clk 0:01:16]}  Rc1 {[%clk 0:00:42]} 30. a5 {[%clk 0:01:10]}  Kb7 {[%clk 0:00:40]} 31. Nb4 {[%clk 0:01:05]}  Rc4 {[%clk 0:00:21]} 32. axb6 {[%clk 0:01:00]}  Rxe4+ {[%clk 0:00:21]} 33. Kf3 {[%clk 0:00:50]}  Rxb4 {[%clk 0:00:21]} 34. Rxa7+ {[%clk 0:00:51]}  Kxb6 {[%clk 0:00:21]} 35. Rxg7 {[%clk 0:00:52]}  Rh4 {[%clk 0:00:15]} 36. h3 {[%clk 0:00:51]}  Kc6 {[%clk 0:00:14]} 37. Kg3 {[%clk 0:00:32]}  Rh6 {[%clk 0:00:14]} 38. f4 {[%clk 0:00:31]}  Kd6 {[%clk 0:00:12]} 39. Kf3 {[%clk 0:00:31]}  Rh5 {[%clk 0:00:09]} 40. Ra7 {[%clk 0:00:29]}  Rd5 {[%clk 0:00:09]} 41. Rxh7 {[%clk 0:00:29]}  Rxd2 {[%clk 0:00:08]} 42. g4 {[%clk 0:00:24]}  Rd3+ {[%clk 0:00:06]} 43. Kf2 {[%clk 0:00:24]}  e5 {[%clk 0:00:06]} 44. f5 {[%clk 0:00:21]}  e4 {[%clk 0:00:05]} 45. h4 {[%clk 0:00:21]}  Ke5 {[%clk 0:00:06]} 46. Rh6 {[%clk 0:00:12]}  Kf4 {[%clk 0:00:04]} 47. Rxf6 {[%clk 0:00:12]}  Rd2+ {[%clk 0:00:03]} 48. Ke1 {[%clk 0:00:12]}  Rh2 {[%clk 0:00:04]} 49. Re6 {[%clk 0:00:09]}  Rxh4 {[%clk 0:00:03]} 50. f6 {[%clk 0:00:09]}  Kxg4 {[%clk 0:00:00]} 51. Rxe4+ {[%clk 0:00:07]} 1-0


[Site "https://www.chess.com"]

[Event "Titled Tuesday Blitz November 14 Late 2023"]
[White "Prithu Gupta"]
[Black "Szente Varga, Fruzsina"]
[WhiteFideId "46618546"]
[BlackFideId "712264"]
[WhiteElo "2575"]
[BlackElo "2357"]
[Result "1/2-1/2"]
[Round "7"]
[TimeControl "180+1"]
[Date "2023.11.14"]
[WhiteClock "0:00:09"]
[BlackClock "0:00:14"]
[Board "59"]

1. d4 {[%clk 0:02:23]}  Nf6 {[%clk 0:02:58]} 2. c4 {[%clk 0:02:20]}  g6 {[%clk 0:02:58]} 3. Nf3 {[%clk 0:02:20]}  Bg7 {[%clk 0:02:59]} 4. e3 {[%clk 0:02:21]}  O-O {[%clk 0:02:59]} 5. Nc3 {[%clk 0:02:21]}  d6 {[%clk 0:03:00]} 6. Be2 {[%clk 0:02:22]}  Nbd7 {[%clk 0:03:00]} 7. O-O {[%clk 0:02:23]}  e5 {[%clk 0:03:00]} 8. b4 {[%clk 0:02:23]}  exd4 {[%clk 0:02:51]} 9. exd4 {[%clk 0:02:23]}  c5 {[%clk 0:02:45]} 10. dxc5 {[%clk 0:02:20]}  dxc5 {[%clk 0:02:45]} 11. b5 {[%clk 0:02:21]}  Ne4 {[%clk 0:02:39]} 12. Nxe4 {[%clk 0:02:22]}  Bxa1 {[%clk 0:02:39]} 13. Bg5 {[%clk 0:02:22]}  Qe8 {[%clk 0:02:26]} 14. Qxa1 {[%clk 0:02:18]}  Qxe4 {[%clk 0:02:26]} 15. Bh6 {[%clk 0:02:18]}  f6 {[%clk 0:02:19]} 16. Bxf8 {[%clk 0:02:17]}  Kxf8 {[%clk 0:02:19]} 17. Re1 {[%clk 0:02:13]}  Kf7 {[%clk 0:02:09]} 18. Bf1 {[%clk 0:02:08]}  Qf4 {[%clk 0:02:05]} 19. Qc3 {[%clk 0:02:07]}  Nb6 {[%clk 0:02:05]} 20. g3 {[%clk 0:02:07]}  Qd6 {[%clk 0:02:02]} 21. Qe3 {[%clk 0:01:56]}  Bd7 {[%clk 0:01:57]} 22. Qh6 {[%clk 0:01:56]}  Kg8 {[%clk 0:01:54]} 23. Re4 {[%clk 0:01:09]}  Qf8 {[%clk 0:01:39]} 24. Qe3 {[%clk 0:01:06]}  Re8 {[%clk 0:01:37]} 25. h4 {[%clk 0:01:03]}  Rxe4 {[%clk 0:01:16]} 26. Qxe4 {[%clk 0:01:04]}  Bc8 {[%clk 0:01:08]} 27. h5 {[%clk 0:01:02]}  Kg7 {[%clk 0:01:05]} 28. hxg6 {[%clk 0:00:57]}  hxg6 {[%clk 0:01:06]} 29. Bd3 {[%clk 0:00:57]}  Qf7 {[%clk 0:01:06]} 30. Qe3 {[%clk 0:00:54]}  Na4 {[%clk 0:01:02]} 31. Bc2 {[%clk 0:00:42]}  Nb2 {[%clk 0:00:48]} 32. Bb3 {[%clk 0:00:33]}  Nxc4 {[%clk 0:00:28]} 33. Qxc5 {[%clk 0:00:33]}  Be6 {[%clk 0:00:28]} 34. Qxa7 {[%clk 0:00:30]}  b6 {[%clk 0:00:25]} 35. Qxf7+ {[%clk 0:00:27]}  Bxf7 {[%clk 0:00:23]} 36. Nd4 {[%clk 0:00:27]}  Na3 {[%clk 0:00:19]} 37. Bxf7 {[%clk 0:00:24]}  Kxf7 {[%clk 0:00:20]} 38. Kg2 {[%clk 0:00:23]}  Ke7 {[%clk 0:00:20]} 39. Kf3 {[%clk 0:00:24]}  Kd6 {[%clk 0:00:20]} 40. Ke4 {[%clk 0:00:13]}  Kc5 {[%clk 0:00:21]} 41. Ne6+ {[%clk 0:00:12]}  Kxb5 {[%clk 0:00:20]} 42. Nf8 {[%clk 0:00:11]}  g5 {[%clk 0:00:17]} 43. Nd7 {[%clk 0:00:11]}  Nb1 {[%clk 0:00:15]} 44. Kd3 {[%clk 0:00:11]}  Kb4 {[%clk 0:00:12]} 45. Nxf6 {[%clk 0:00:10]}  Nc3 {[%clk 0:00:13]} 46. Nd7 {[%clk 0:00:09]}  b5 {[%clk 0:00:13]} 47. a3+ {[%clk 0:00:08]}  Kb3 {[%clk 0:00:11]} 48. Nc5+ {[%clk 0:00:08]}  Kb2 {[%clk 0:00:11]} 49. f4 {[%clk 0:00:08]}  gxf4 {[%clk 0:00:11]} 50. gxf4 {[%clk 0:00:09]}  Nd5 {[%clk 0:00:11]} 51. f5 {[%clk 0:00:07]}  Kxa3 {[%clk 0:00:11]} 52. Kd4 {[%clk 0:00:07]}  Nf6 {[%clk 0:00:11]} 53. Ke5 {[%clk 0:00:08]}  Ng4+ {[%clk 0:00:11]} 54. Kf4 {[%clk 0:00:08]}  Nf6 {[%clk 0:00:11]} 55. Kg5 {[%clk 0:00:08]}  Nd5 {[%clk 0:00:12]} 56. f6 {[%clk 0:00:07]}  Nxf6 {[%clk 0:00:12]} 57. Kxf6 {[%clk 0:00:08]}  b4 {[%clk 0:00:13]} 58. Ke5 {[%clk 0:00:08]}  b3 {[%clk 0:00:14]} 59. Nxb3 {[%clk 0:00:09]} 1/2-1/2


[Site "https://www.chess.com"]